bitfinex/quotes_BTCUSD_20250822
["timestamp","ask_amount","ask_price","bid_price","bid_amount"]
[1755836746504,3.62764477,113430.0,113420.0,0.0052]
[1755836746697,3.79602418,113430.0,113420.0,0.0052]
[1755836747750,3.82255218,113430.0,113420.0,0.0052]
[1755836748361,4.30879988,113430.0,113420.0,0.0052]
[1755836748767,4.2943159,113430.0,113420.0,0.0052]
[1755836748996,4.30812246,113430.0,113420.0,0.0052]
[1755836749738,4.13180227,113430.0,113420.0,0.0052]
[1755836750876,4.1108474,113430.0,113420.0,0.0052]
[1755836753334,4.1253126,113430.0,113420.0,0.0052]
[1755836753729,3.9766726,113430.0,113420.0,0.0052]
[1755836753931,4.1253126,113430.0,113420.0,0.0052]
[1755836754724,4.1108474,113430.0,113420.0,0.0052]
[1755836754982,4.12530898,113430.0,113420.0,0.0052]
[1755836755387,4.1253066,113430.0,113420.0,0.0052]
[1755836755635,4.21217625,113430.0,113420.0,0.0052]
[1755836756667,4.24394011,113430.0,113420.0,0.0052]
[1755836758595,4.4202603,113430.0,113420.0,0.0052]
[1755836758799,4.13054246,113430.0,113420.0,0.0052]
[1755836759001,4.0987786,113430.0,113420.0,0.0052]
[1755836760374,3.9501386,113430.0,113420.0,0.0052]
[1755836760591,3.6125309,113430.0,113420.0,0.0052]
[1755836760795,3.58870782,113430.0,113420.0,0.0052]
[1755836761008,3.58870555,113430.0,113420.0,0.0052]
[1755836761816,3.44006555,113430.0,113420.0,0.0052]
[1755836762055,3.58250972,113430.0,113420.0,0.0052]
[1755836762274,3.58870687,113430.0,113420.0,0.0052]
[1755836762487,3.56870316,113430.0,113420.0,0.0052]
[1755836763313,3.56870602,113430.0,113420.0,0.0052]
[1755836763729,3.4262644,113430.0,113420.0,0.0052]
[1755836763937,3.56044206,113430.0,113420.0,0.0552]
[1755836764119,0.2493118,113430.0,113420.0,0.0562]
[1755836764359,0.1006718,113430.0,113420.0,0.0562]
[1755836764768,0.2493118,113430.0,113420.0,0.0562]
[1755836764949,0.2493118,113430.0,113420.0,0.0072]
[1755836765192,0.2493118,113430.0,113420.0,0.0572]
[1755836765601,0.1006718,113430.0,113420.0,0.0572]
[1755836765809,0.2493118,113430.0,113420.0,0.0572]
[1755836766018,0.6006718,113430.0,113420.0,0.0572]
[1755836766235,0.23028574,113430.0,113420.0,0.0572]
[1755836766455,0.08164574,113430.0,113420.0,0.0572]
[1755836766640,0.23028574,113430.0,113420.0,0.0572]
[1755836766844,0.71648,113430.0,113420.0,0.0572]
[1755836767057,0.21648,113430.0,113420.0,0.0572]
[1755836767422,0.71648,113430.0,113420.0,0.0572]
[1755836767622,0.21648,113430.0,113420.0,0.0572]
[1755836767831,0.71648,113430.0,113420.0,0.0572]
[1755836768027,0.21648,113430.0,113420.0,0.0572]
[1755836768233,0.71648,113430.0,113420.0,0.0572]
[1755836768448,0.21648,113430.0,113420.0,0.0572]
[1755836768662,0.71648,113430.0,113420.0,0.0572]
[1755836768867,0.21648,113430.0,113420.0,0.0572]
[1755836769208,0.73028526,113430.0,113420.0,0.0572]
[1755836769529,0.23028526,113430.0,113420.0,0.0572]
[1755836772275,0.08164526,113430.0,113420.0,0.06534977]
[1755836772481,0.23024526,113430.0,113420.0,0.06534977]
[1755836772690,0.73024526,113430.0,113420.0,0.06534977]
[1755836772904,0.23024526,113430.0,113420.0,0.06534977]
[1755836774713,0.23024526,113430.0,113420.0,0.0572]
[1755836779452,0.23040526,113430.0,113420.0,0.052]
[1755836779671,0.2589171,113430.0,113420.0,0.052]
[1755836780071,0.2779619,113430.0,113420.0,0.052]
[1755836780272,3.6028979,113430.0,113420.0,0.052]
[1755836780446,3.5838531,113430.0,113420.0,0.052]
[1755836780918,3.55534126,113430.0,113420.0,0.052]
[1755836781349,3.57438934,113430.0,113420.0,0.052]
[1755836782003,3.66125899,113430.0,113420.0,0.052]
[1755836783545,3.57438934,113430.0,113420.0,0.052]
[1755836784089,3.57438934,113430.0,113420.0,0.05504]
[1755836784617,3.57438934,113430.0,113420.0,0.002]
[1755836784855,3.61747515,113430.0,113420.0,0.002]
[1755836785079,3.64129823,113430.0,113420.0,0.002]
[1755836785294,4.21440378,113430.0,113420.0,0.002]
[1755836785505,4.22712652,113430.0,113420.0,0.002]
[1755836785718,4.40344671,113430.0,113420.0,0.001]
[1755836785959,4.22712652,113430.0,113410.0,0.0004]
[1755836786166,3.324936,113420.0,113410.0,0.0004]
[1755836786380,3.4454877,113420.0,113410.0,0.0004]
[1755836786798,3.4454877,113420.0,113410.0,0.00344]
[1755836787248,3.35861805,113420.0,113410.0,0.00344]
[1755836787457,3.51590282,113420.0,113410.0,0.00547]
[1755836787664,3.35471782,113420.0,113410.0,0.00547]
[1755836787879,3.35471962,113420.0,113410.0,0.00547]
[1755836788099,3.35471962,113420.0,113410.0,0.00647]
[1755836788312,3.44174927,113420.0,113410.0,0.0014]
[1755836788935,3.47386714,113420.0,113410.0,0.0014]
[1755836789148,3.9766936,113420.0,113410.0,0.0014]
[1755836789358,3.94467573,113420.0,113410.0,0.0014]
[1755836789583,3.94467573,113420.0,113410.0,0.0024]
[1755836789820,3.97120573,113420.0,113410.0,0.0024]
[1755836790027,4.0032236,113420.0,113410.0,0.0014]
[1755836790233,3.97120573,113420.0,113410.0,0.0014]
[1755836790651,3.9850133,113420.0,113410.0,0.0014]
[1755836791117,3.9849133,113420.0,113410.0,0.0014]
[1755836791333,3.95388807,113420.0,113410.0,0.0014]
[1755836791541,3.25423962,113420.0,113410.0,0.00547]
[1755836791745,3.41319962,113420.0,113410.0,0.00547]
[1755836791949,3.41319663,113420.0,113410.0,0.00547]
[1755836792896,3.41319663,113420.0,113410.0,0.00747]
[1755836793742,3.38666663,113420.0,113410.0,0.00747]
[1755836794350,3.38666974,113420.0,113410.0,0.00747]
[1755836794777,3.37286217,113420.0,113410.0,0.00747]
[1755836794993,3.38666898,113420.0,113410.0,0.00747]
[1755836795421,3.22770898,113420.0,113410.0,0.00747]
[1755836795629,0.15884477,113420.0,113410.0,0.05747]
[1755836796533,0.65884477,113420.0,113410.0,0.05747]
[1755836796756,3.82259577,113420.0,113410.0,0.05747]
[1755836796977,0.15884477,113420.0,113410.0,0.05747]
[1755836797216,0.65884477,113420.0,113410.0,0.05747]
[1755836797449,3.82259577,113420.0,113410.0,0.05747]
[1755836797772,0.15884477,113420.0,113410.0,0.05747]
[1755836797983,0.65884477,113420.0,113410.0,0.05747]
[1755836798187,3.82259577,113420.0,113410.0,0.05747]
[1755836798400,0.15884477,113420.0,113410.0,0.05747]
[1755836798603,0.65884477,113420.0,113410.0,0.05747]
[1755836798834,3.82259577,113420.0,113410.0,0.05747]
[1755836799040,0.17265108,113420.0,113410.0,0.05747]
[1755836799244,0.67265108,113420.0,113410.0,0.05747]
[1755836799454,3.67764208,113420.0,113410.0,0.05747]
[1755836799653,0.17245108,113420.0,113410.0,0.05747]
[1755836799827,0.67245108,113420.0,113410.0,0.05747]
[1755836804733,0.51389108,113420.0,113410.0,0.05747]
[1755836804949,0.17221108,113420.0,113410.0,0.05747]
[1755836805154,0.67221108,113420.0,113410.0,0.05747]
[1755836805378,3.83596208,113420.0,113410.0,0.05747]
[1755836805587,0.17205108,113420.0,113410.0,0.05747]
[1755836805795,0.65824477,113420.0,113410.0,0.05747]
[1755836807869,0.65824477,113420.0,113410.0,0.06569677]
[1755836808551,0.65824477,113420.0,113410.0,0.05747]
[1755836808979,0.67205102,113420.0,113410.0,0.05747]
[1755836811622,0.67209102,113420.0,113410.0,0.08136768]
[1755836811826,0.17209102,113420.0,113410.0,0.08136768]
[1755836812035,0.17201102,113420.0,113410.0,0.08136768]
[1755836812245,0.17201102,113420.0,113410.0,0.08959445]
[1755836812664,0.17201102,113420.0,113410.0,0.08759445]
[1755836812895,0.17201102,113420.0,113410.0,0.09059445]
[1755836813108,0.17201102,113420.0,113410.0,0.10804347]
[1755836814152,0.17201102,113420.0,113410.0,0.11024786]
[1755836816206,0.17217102,113420.0,113410.0,0.0947467]
[1755836816421,0.17217102,113420.0,113410.0,0.0978267]
[1755836816653,0.17217102,113420.0,113410.0,0.07729768]
[1755836817122,0.17217102,113420.0,113410.0,0.0034]
[1755836817330,0.17217102,113420.0,113410.0,0.02729768]
[1755836818938,0.19618612,113420.0,113410.0,0.0534]
[1755836819840,0.17217102,113420.0,113410.0,0.07729768]
[1755836820496,0.17217102,113420.0,113410.0,0.08037768]
[1755836820755,0.06784,113430.0,113410.0,0.07729768]
[1755836820970,0.01380594,113420.0,113410.0,0.08052227]
[1755836821379,0.06784,113430.0,113410.0,0.08052227]
[1755836821593,0.10138636,113430.0,113410.0,0.07952227]
[1755836821794,0.10138636,113430.0,113410.0,0.05562459]
[1755836822025,0.15888,113420.0,113410.0,0.05254459]
[1755836822625,0.15888,113420.0,113410.0,0.05054459]
[1755836823055,0.17268599,113420.0,113410.0,0.05054459]
[1755836823257,0.17268599,113420.0,113410.0,0.05154459]
[1755836823744,3.3940462,113420.0,113410.0,0.00354459]
[1755836823928,4.08461239,113420.0,113410.0,0.00354459]
[1755836824434,4.08461038,113420.0,113410.0,0.00154459]
[1755836824649,4.05665593,113420.0,113410.0,0.00054459]
[1755836824876,4.0892577,113420.0,113410.0,0.00054459]
[1755836825108,4.06130325,113420.0,113410.0,0.00054459]
[1755836826598,4.06330325,113420.0,113410.0,0.00054459]
[1755836827132,3.69001126,113420.0,113410.0,0.00054459]
[1755836827657,3.68379237,113420.0,113410.0,0.00054459]
[1755836827923,3.71794509,113420.0,113410.0,0.00054459]
[1755836828177,3.84863046,113420.0,113410.0,0.00054459]
[1755836828970,3.89403393,113420.0,113410.0,0.00054459]
[1755836829202,3.87988909,113420.0,113410.0,0.00054459]
[1755836830338,3.90784354,113420.0,113410.0,0.00054459]
[1755836832427,0.22285708,113410.0,113400.0,0.0009]
[1755836832639,3.30440553,113410.0,113400.0,0.00098477]
[1755836833491,3.27645108,113410.0,113400.0,0.00098477]
[1755836834404,3.30299008,113410.0,113400.0,0.00098477]
[1755836835458,3.30499008,113410.0,113400.0,0.00098477]
[1755836835901,3.46295008,113410.0,113400.0,0.00098477]
[1755836836539,3.30499008,113410.0,113400.0,0.00098477]
[1755836836751,3.45472571,113410.0,113400.0,0.00098477]
[1755836836990,3.4947053,113410.0,113400.0,0.00098477]
[1755836838079,3.4957053,113410.0,113400.0,0.00098477]
[1755836838999,3.47825628,113410.0,113400.0,0.00098477]
[1755836841606,3.32025628,113410.0,113400.0,0.00098477]
[1755836841820,3.39098663,113410.0,113400.0,0.00631477]
[1755836843142,3.1738588,113410.0,113400.0,0.00631477]
[1755836843359,3.35021009,113410.0,113400.0,0.00631477]
[1755836843594,3.19261009,113410.0,113400.0,0.00631477]
[1755836843804,3.35009009,113410.0,113400.0,0.00631477]
[1755836844010,3.43695974,113410.0,113400.0,0.00631477]
[1755836844771,3.35009009,113410.0,113400.0,0.00631477]
[1755836846163,3.17374491,113410.0,113400.0,0.00631477]
[1755836846369,3.3500962,113410.0,113400.0,0.00631477]
[1755836846566,3.16550487,113410.0,113400.0,0.00631477]
[1755836846752,3.17374798,113410.0,113400.0,0.00631477]
[1755836846951,3.26061763,113410.0,113400.0,0.00631477]
[1755836847426,3.17374798,113410.0,113400.0,0.00631477]
[1755836847852,3.35009927,113410.0,113400.0,0.00631477]
[1755836848078,3.37805372,113410.0,113400.0,0.00098477]
[1755836848545,0.20432129,113400.0,113390.0,0.0004]
[1755836848770,3.90232803,113400.0,113390.0,0.0004]
[1755836848978,3.98919768,113400.0,113390.0,0.0004]
[1755836849388,4.00295246,113400.0,113390.0,0.0004]
[1755836849839,4.03048946,113400.0,113390.0,0.0004]
[1755836850480,4.03148946,113400.0,113390.0,0.0004]
[1755836852543,4.06325332,113400.0,113390.0,0.0004]
[1755836853222,4.11089911,113400.0,113390.0,0.0004]
[1755836853614,4.07913525,113400.0,113390.0,0.0004]
[1755836855421,4.07295536,113400.0,113390.0,0.0004]
[1755836855686,4.07919339,113400.0,113390.0,0.0004]
[1755836856112,4.05123894,113400.0,113390.0,0.0004]
[1755836856313,4.05123894,113400.0,113390.0,0.00363]
[1755836857271,4.05123894,113400.0,113390.0,0.0004]
[1755836857551,4.07919339,113400.0,113390.0,0.0004]
[1755836858388,4.0315476,113400.0,113390.0,0.0004]
[1755836860179,4.00359315,113400.0,113390.0,0.0004]
[1755836861621,4.06714865,113400.0,113390.0,0.0004]
[1755836862131,0.17638239,113390.0,113380.0,0.00363]
[1755836862331,3.45358861,113390.0,113380.0,0.00577822]
[1755836864735,3.47392041,113390.0,113380.0,0.00577822]
[1755836864938,3.48014511,113390.0,113380.0,0.00577822]
[1755836865591,3.30376272,113390.0,113380.0,0.00577822]
[1755836865728,3.30376254,113390.0,113380.0,0.00577822]
[1755836865933,3.48014493,113390.0,113380.0,0.00577822]
[1755836866731,3.50809938,113390.0,113380.0,0.00577822]
[1755836867336,3.48014493,113390.0,113380.0,0.00577822]
[1755836868390,3.30376254,113390.0,113380.0,0.00577822]
[1755836869121,3.48014493,113390.0,113380.0,0.00577822]
[1755836870820,3.30376254,113390.0,113380.0,0.00577822]
[1755836871739,3.48014493,113390.0,113380.0,0.00577822]
[1755836874242,3.47185942,113390.0,113380.0,0.00577822]
[1755836874424,3.30376158,113390.0,113380.0,0.00577822]
[1755836874635,3.50809842,113390.0,113380.0,0.00577822]
[1755836874875,3.50809846,113390.0,113380.0,0.00577822]
[1755836876217,3.53991116,113390.0,113380.0,0.00577822]
[1755836877451,3.50809846,113390.0,113380.0,0.00577822]
[1755836877988,3.75809846,113390.0,113380.0,0.00577822]
[1755836878431,3.7899158,113390.0,113380.0,0.00577822]
[1755836879261,3.79099342,113390.0,113380.0,0.00577822]
[1755836879693,3.79099342,113390.0,113380.0,0.00044822]
[1755836879904,3.55355177,113390.0,113380.0,0.00044822]
[1755836880721,3.57841684,113390.0,113380.0,0.00044822]
[1755836881555,3.5639183,113390.0,113380.0,0.00044822]
[1755836881765,3.57842065,113390.0,113380.0,0.00044822]
[1755836882191,3.58637292,113390.0,113380.0,0.00044822]
[1755836882805,3.58015657,113390.0,113380.0,0.00044822]
[1755836882981,3.58637107,113390.0,113380.0,0.00044822]
[1755836883415,3.58637101,113390.0,113380.0,0.00044822]
[1755836886054,3.58636815,113390.0,113380.0,0.00044822]
[1755836887654,3.33636815,113390.0,113380.0,0.00044822]
[1755836888302,3.33636733,113390.0,113380.0,0.00044822]
[1755836889757,3.30454999,113390.0,113380.0,0.00044822]
[1755836889965,3.36810549,113390.0,113380.0,0.00044822]
[1755836890364,3.30454999,113390.0,113380.0,0.00044822]
[1755836891169,3.30454656,113390.0,113380.0,0.00044822]
[1755836892246,3.30454048,113390.0,113380.0,0.00044822]
[1755836892604,3.29005323,113390.0,113380.0,0.00044822]
[1755836892939,3.30453841,113390.0,113380.0,0.00044822]
[1755836893211,3.31835235,113390.0,113380.0,0.00044822]
[1755836893617,3.30453841,113390.0,113380.0,0.00044822]
[1755836893820,3.30453841,113390.0,113380.0,0.00339822]
[1755836894350,3.30453841,113390.0,113380.0,0.00044822]
[1755836895829,3.32198743,113390.0,113380.0,0.00044822]
[1755836896248,0.17639795,113380.0,113370.0,0.0004]
[1755836896454,3.65448759,113380.0,113370.0,0.0004]
[1755836897331,3.65802659,113380.0,113370.0,0.0004]
[1755836898330,3.65801911,113380.0,113370.0,0.0004]
[1755836898685,3.66001911,113380.0,113370.0,0.0004]
[1755836898889,3.66401911,113380.0,113370.0,0.0004]
[1755836899106,3.70942258,113380.0,113370.0,0.0004]
[1755836899331,3.77297808,113380.0,113370.0,0.0004]
[1755836899779,3.70942258,113380.0,113370.0,0.0004]
[1755836900410,0.17644327,113360.0,113340.0,0.06130343]
[1755836900633,3.016696,113350.0,113340.0,0.06130343]
[1755836901069,3.22671108,113350.0,113340.0,0.06327343]
[1755836901275,3.05026644,113350.0,113340.0,0.06327343]
[1755836901484,3.03578874,113350.0,113340.0,0.06327343]
[1755836901658,3.04198901,113350.0,113340.0,0.06327343]
[1755836901873,3.12885866,113350.0,113340.0,0.0637553]
[1755836902073,3.12885866,113350.0,113340.0,0.0647553]
[1755836902488,3.12885866,113350.0,113340.0,0.0677353]
[1755836902669,3.3053033,113350.0,113340.0,0.00643187]
[1755836902870,3.12885866,113350.0,113340.0,0.00643187]
[1755836903708,3.14267467,113350.0,113340.0,0.00643187]
[1755836904701,3.14267085,113350.0,113340.0,0.00643187]
[1755836906560,3.83562794,113350.0,113340.0,0.00643187]
[1755836906758,3.86572048,113350.0,113340.0,0.00643187]
[1755836907201,3.89226948,113350.0,113340.0,0.00643187]
[1755836907758,3.89226836,113350.0,113340.0,0.00643187]
[1755836907961,3.89326836,113350.0,113340.0,0.00643187]
[1755836908810,3.89326836,113350.0,113340.0,0.00543187]
[1755836909011,3.62995407,113350.0,113340.0,0.00543187]
[1755836909222,3.63095407,113350.0,113340.0,0.00543187]
[1755836909567,3.60299962,113350.0,113340.0,0.00543187]
[1755836910899,3.59473869,113350.0,113340.0,0.00543187]
[1755836911120,3.6030002,113350.0,113340.0,0.00543187]
[1755836911326,3.68986985,113350.0,113340.0,0.00543187]
[1755836911891,3.68986957,113350.0,113340.0,0.00543187]
[1755836914598,3.86829421,113350.0,113340.0,0.00543187]
[1755836915272,3.69184957,113350.0,113340.0,0.00543187]
[1755836916169,3.86829421,113350.0,113340.0,0.00543187]
[1755836916404,3.89624866,113350.0,113340.0,0.00543187]
[1755836920412,3.91974371,113350.0,113340.0,0.00543187]
[1755836920570,3.93421691,113350.0,113340.0,0.00543187]
[1755836920916,3.93421705,113350.0,113340.0,0.00543187]
[1755836921754,3.75777241,113350.0,113340.0,0.00543187]
[1755836923123,3.75777465,113350.0,113340.0,0.00543187]
[1755836923359,3.73396304,113350.0,113340.0,0.00543187]
[1755836925773,3.91040768,113350.0,113340.0,0.00543187]
[1755836925957,3.92628209,113350.0,113340.0,0.00048187]
[1755836926611,3.92628819,113350.0,113340.0,0.00048187]
[1755836927214,3.72088419,113350.0,113340.0,0.00048187]
[1755836927486,3.70505473,113350.0,113340.0,0.00048187]
[1755836929848,3.69677585,113350.0,113340.0,0.00048187]
[1755836930041,3.70506634,113350.0,113340.0,0.00048187]
[1755836932285,3.70506634,113350.0,113340.0,0.00550187]
[1755836935360,3.70506634,113350.0,113340.0,0.00048187]
[1755836935570,3.70786402,113350.0,113340.0,0.00048187]
[1755836936784,4.04786402,113350.0,113340.0,0.00048187]
[1755836937008,3.70786402,113350.0,113340.0,0.00048187]
[1755836937214,4.04786402,113350.0,113340.0,0.00048187]
[1755836937395,4.06376521,113350.0,113340.0,0.00048187]
[1755836937907,4.01607026,113350.0,113340.0,0.00048187]
[1755836939153,4.00157697,113350.0,113340.0,0.00048187]
[1755836939362,4.06375466,113350.0,113340.0,0.00048187]
[1755836939777,4.0637542,113350.0,113340.0,0.00048187]
[1755836940635,4.0609442,113350.0,113340.0,0.00048187]
[1755836940853,3.7907001,113350.0,113340.0,0.00550187]
[1755836941084,3.9425001,113350.0,113340.0,0.00550187]
[1755836941549,3.9446001,113350.0,113340.0,0.00048187]
[1755836942382,3.9425001,113350.0,113340.0,0.00550187]
[1755836944447,3.68188734,113350.0,113340.0,0.00550187]
[1755836944763,3.43847449,113350.0,113340.0,0.00550187]
[1755836947503,3.44045449,113350.0,113340.0,0.00550187]
[1755836947714,3.43424516,113350.0,113340.0,0.00550187]
[1755836947926,3.44045434,113350.0,113340.0,0.00550187]
[1755836949918,3.1102297,113350.0,113340.0,0.00550187]
[1755836950121,3.2617097,113350.0,113340.0,0.00550187]
[1755836950321,3.25531164,113350.0,113340.0,0.00550187]
[1755836950886,3.25531382,113350.0,113340.0,0.00550187]
[1755836953395,3.34218347,113350.0,113340.0,0.00550187]
[1755836953760,3.34218501,113350.0,113340.0,0.00550187]
[1755836954529,3.39782085,113350.0,113340.0,0.00550187]
[1755836957087,3.39782661,113350.0,113340.0,0.00550187]
[1755836957682,3.57427125,113350.0,113340.0,0.00550187]
[1755836957908,3.6041857,113350.0,113340.0,0.00048187]
[1755836958357,4.0907626,113350.0,113340.0,0.00048187]
[1755836958577,4.05897281,113350.0,113340.0,0.00048187]
[1755836963039,4.06179281,113350.0,113340.0,0.00048187]
[1755836966408,4.05557855,113350.0,113340.0,0.00048187]
[1755836966631,4.06179103,113350.0,113340.0,0.00048187]
[1755836966841,4.06179111,113350.0,113340.0,0.00048187]
[1755836967356,4.06179121,113350.0,113340.0,0.00048187]
[1755836969585,4.05897147,113350.0,113340.0,0.00048187]
[1755836969810,3.79734573,113350.0,113340.0,0.00048187]
[1755836970275,3.82389673,113350.0,113340.0,0.00048187]
[1755836972625,3.81768406,113350.0,113340.0,0.00048187]
[1755836973035,3.84563851,113350.0,113340.0,0.00048187]
[1755836975814,3.84563852,113350.0,113340.0,0.00048187]
[1755836977558,3.84845852,113350.0,113340.0,0.00048187]
[1755836977782,3.84563852,113350.0,113340.0,0.00048187]
[1755836979848,3.86151801,113350.0,113340.0,0.00048187]
[1755836981771,3.86772953,113350.0,113340.0,0.00048187]
[1755836981963,3.83977508,113350.0,113340.0,0.00048187]
[1755836982560,3.83977508,113350.0,113340.0,0.00353187]
[1755836982786,3.59946543,113350.0,113340.0,0.00550187]
[1755836983001,3.75094543,113350.0,113340.0,0.00550187]
[1755836983626,3.42302079,113350.0,113340.0,0.00550187]
[1755836984064,3.5797545,113350.0,113340.0,0.00550187]
[1755836985101,3.57975429,113350.0,113340.0,0.00550187]
[1755836985884,3.16503509,113350.0,113340.0,0.00550187]
[1755836988346,3.16499509,113350.0,113340.0,0.00550187]
[1755836988914,3.25186474,113350.0,113340.0,0.00550187]
[1755836990613,3.16499509,113350.0,113340.0,0.00550187]
[1755836991862,3.16499535,113350.0,113340.0,0.00550187]
[1755836992979,3.01355535,113350.0,113340.0,0.00550187]
[1755836993183,3.16499535,113350.0,113340.0,0.00550187]
[1755836994336,3.16499465,113350.0,113340.0,0.00550187]
[1755836995099,3.16499413,113350.0,113340.0,0.00550187]
[1755836995967,3.17294426,113350.0,113340.0,0.00550187]
[1755836997979,3.19202172,113350.0,113340.0,0.00550187]
[1755837000311,2.72929076,113350.0,113340.0,0.00550187]
[1755837000511,2.69748431,113350.0,113340.0,0.00550187]
[1755837000715,2.54604431,113350.0,113340.0,0.00550187]
[1755837000917,2.69744431,113350.0,113340.0,0.00550187]
[1755837001118,2.69744409,113350.0,113340.0,0.00550187]
[1755837002069,2.69744067,113350.0,113340.0,0.00550187]
[1755837002744,2.69743782,113350.0,113340.0,0.00550187]
[1755837003605,2.69743631,113350.0,113340.0,0.00550187]
[1755837004366,2.69941631,113350.0,113340.0,0.00550187]
[1755837005207,2.54801631,113350.0,113340.0,0.00550187]
[1755837005631,2.69937631,113350.0,113340.0,0.00550187]
[1755837005841,2.72733024,113350.0,113340.0,0.00550187]
[1755837006495,2.69937579,113350.0,113340.0,0.00550187]
[1755837008098,2.78624544,113350.0,113340.0,0.00048187]
[1755837008315,2.90659488,113350.0,113340.0,0.00048187]
[1755837008517,3.37935769,113350.0,113340.0,0.00048187]
[1755837009855,3.20291305,113350.0,113340.0,0.00048187]
[1755837010066,3.37935769,113350.0,113340.0,0.00048187]
[1755837010276,3.3931744,113350.0,113340.0,0.00048187]
[1755837010492,3.51184876,113350.0,113340.0,0.00048187]
[1755837010708,3.48800282,113350.0,113340.0,0.00048187]
[1755837011840,0.20441465,113340.0,113330.0,0.0004]
[1755837012054,2.80757255,113340.0,113330.0,0.00044819]
[1755837012274,2.82486773,113340.0,113330.0,0.00044819]
[1755837012693,2.62045321,113340.0,113330.0,0.00044819]
[1755837013393,2.79691341,113340.0,113330.0,0.00144819]
[1755837013833,2.62045321,113340.0,113330.0,0.00144819]
[1755837014024,2.70732286,113340.0,113330.0,0.00144819]
[1755837014228,2.88378306,113340.0,113330.0,0.00144819]
[1755837014641,2.70732286,113340.0,113330.0,0.00144819]
[1755837015319,2.88378306,113340.0,113330.0,0.00144819]
[1755837015752,2.70732286,113340.0,113330.0,0.00144819]
[1755837016197,2.88378306,113340.0,113330.0,0.00144819]
[1755837017793,2.70732286,113340.0,113330.0,0.00144819]
[1755837018152,2.88378306,113340.0,113330.0,0.00144819]
[1755837018368,2.88378244,113340.0,113330.0,0.00144819]
[1755837018719,2.91173689,113340.0,113330.0,0.00144819]
[1755837018925,2.91970316,113340.0,113330.0,0.00144819]
[1755837019341,2.89174871,113340.0,113330.0,0.00144819]
[1755837019546,2.91830171,113340.0,113330.0,0.00044819]
[1755837020944,2.70657723,113340.0,113330.0,0.00044819]
[1755837021139,2.70757723,113340.0,113330.0,0.00044819]
[1755837021362,2.72104699,113340.0,113330.0,0.00044819]
[1755837021572,0.17647577,113330.0,113320.0,0.0004]
[1755837021774,3.10494702,113330.0,113320.0,0.0004]
[1755837021984,3.10494443,113330.0,113320.0,0.0004]
[1755837022197,3.12467489,113330.0,113320.0,0.0004]
[1755837022457,3.13849367,113330.0,113320.0,0.0004]
[1755837022663,3.14203467,113330.0,113320.0,0.0004]
[1755837022903,3.14483467,113330.0,113320.0,0.0004]
[1755837023122,3.11820644,113330.0,113320.0,0.0014]
[1755837023758,3.09305199,113330.0,113320.0,0.0014]
[1755837023967,3.09305199,113330.0,113320.0,0.0004]
[1755837024416,3.09405199,113330.0,113320.0,0.0004]
[1755837024634,3.09125199,113330.0,113320.0,0.0004]
[1755837024834,3.09024486,113330.0,113320.0,0.0004]
[1755837025035,3.09124486,113330.0,113320.0,0.0004]
[1755837025707,3.09404486,113330.0,113320.0,0.0004]
[1755837025919,3.09124486,113330.0,113320.0,0.0004]
[1755837026135,3.07742608,113330.0,113320.0,0.0004]
[1755837027647,3.08021608,113330.0,113320.0,0.0004]
[1755837028292,3.07742608,113330.0,113320.0,0.0004]
[1755837028990,3.09124593,113330.0,113320.0,0.0004]
[1755837030745,3.08297543,113330.0,113320.0,0.0004]
[1755837030941,3.11505736,113330.0,113320.0,0.0004]
[1755837031817,3.12583384,113330.0,113320.0,0.0004]
[1755837032017,3.17352223,113330.0,113320.0,0.0004]
[1755837032432,3.12583384,113330.0,113320.0,0.0004]
[1755837034895,3.17352223,113330.0,113320.0,0.0004]
[1755837036215,3.12583384,113330.0,113320.0,0.0004]
[1755837036955,3.12303384,113330.0,113320.0,0.0004]
[1755837039435,3.10330338,113330.0,113320.0,0.0004]
[1755837040060,3.09710993,113330.0,113320.0,0.0004]
[1755837040289,3.10330526,113330.0,113320.0,0.0004]
[1755837040755,3.10330604,113330.0,113320.0,0.0004]
[1755837041209,3.15099443,113330.0,113320.0,0.0004]
[1755837041419,3.17979911,113330.0,113320.0,0.0004]
[1755837042074,3.02847911,113330.0,113320.0,0.0004]
[1755837042269,3.17971911,113330.0,113320.0,0.0004]
[1755837042479,3.18252911,113330.0,113320.0,0.0004]
[1755837043398,3.18253428,113330.0,113320.0,0.0004]
[1755837044133,3.17972428,113330.0,113320.0,0.0004]
[1755837044755,3.18253428,113330.0,113320.0,0.0004]
[1755837044972,3.15072957,113330.0,113320.0,0.0004]
[1755837045821,3.14791957,113330.0,113320.0,0.0004]
[1755837046041,2.99667957,113330.0,113320.0,0.0004]
[1755837046253,3.14791957,113330.0,113320.0,0.0004]
[1755837046461,3.14792206,113330.0,113320.0,0.0004]
[1755837049566,3.14793686,113330.0,113320.0,0.0004]
[1755837049960,3.14793691,113330.0,113320.0,0.0004]
[1755837050225,0.20444938,113320.0,113310.0,0.0004]
[1755837050449,2.79674484,113320.0,113310.0,0.0004]
[1755837050638,2.79956484,113320.0,113310.0,0.0004]
[1755837051061,2.80310584,113320.0,113310.0,0.0004]
[1755837052576,2.79583352,113320.0,113310.0,0.0004]
[1755837052786,2.80410426,113320.0,113310.0,0.0004]
[1755837053021,2.80610426,113320.0,113310.0,0.0004]
[1755837054055,2.77814623,113320.0,113310.0,0.0004]
[1755837054901,2.80610426,113320.0,113310.0,0.0004]
[1755837056409,2.77814623,113320.0,113310.0,0.0004]
[1755837058454,2.79559525,113320.0,113310.0,0.0004]
[1755837058653,2.78939101,113320.0,113310.0,0.0004]
[1755837058852,2.7955935,113320.0,113310.0,0.0004]
[1755837059226,2.78939069,113320.0,113310.0,0.0004]
[1755837059470,2.79559402,113320.0,113310.0,0.0004]
[1755837059677,2.79559386,113320.0,113310.0,0.0004]
[1755837060107,2.79077386,113320.0,113310.0,0.00543]
[1755837060534,2.79273386,113320.0,113310.0,0.00543]
[1755837060985,2.79273386,113320.0,113310.0,0.0004]
[1755837061196,2.74508607,113320.0,113310.0,0.0004]
[1755837061899,2.79273715,113320.0,113310.0,0.0004]
[1755837062587,2.77826356,113320.0,113310.0,0.0004]
[1755837063028,2.52082489,113320.0,113310.0,0.00543]
[1755837063267,2.6781893,113320.0,113310.0,0.00543]
[1755837063923,2.5270293,113320.0,113310.0,0.00543]
[1755837064138,2.68025758,113320.0,113310.0,0.00543]
[1755837065015,2.68646181,113320.0,113310.0,0.00543]
[1755837065252,2.76505893,113320.0,113310.0,0.00543]
[1755837065451,2.77333169,113320.0,113310.0,0.00543]
[1755837068354,2.68642204,113320.0,113310.0,0.00543]
[1755837068552,2.71819181,113320.0,113310.0,0.00543]
[1755837069628,2.53342911,113320.0,113310.0,0.00543]
[1755837069944,2.49405211,113320.0,113310.0,0.00543]